fUSD/lending_fUSD_20260415
["ID","MTS","AMOUNT","RATE_DAILY","PERIOD"]
[420513768,1776202234085,-14356.8,0.00013177,2]
[420513769,1776202234095,-183.16140459,0.00013354,2]
[420513770,1776202234105,-5000.0,0.00013355,2]
[420513771,1776202234115,-6431.0711,0.00013355,2]
[420513772,1776202234125,-2500.0,0.00013355,2]
[420513773,1776202234136,-164.4633523,0.00013373,2]
[420513774,1776202234146,-584.44571093,0.000134,2]
[420513775,1776202234156,-150.0,0.00013452,2]
[420513776,1776202234167,-150.0,0.00013452,2]
[420513777,1776202234177,-500.0,0.00013454,2]
[420513778,1776202234187,-150.0,0.00013454,2]
[420513779,1776202234197,-175.99,0.00013454,2]
[420513780,1776202234207,-500.0,0.00013454,2]
[420513781,1776202234217,-500.0,0.00013454,2]
[420513782,1776202234228,-397.32224294,0.00013454,2]
[420513783,1776202234238,-500.0,0.00013454,2]
[420513784,1776202234248,-460.47964266,0.00013454,2]
[420513785,1776202234258,-373.81611911,0.00013454,2]
[420513786,1776202234268,-500.0,0.00013454,2]
[420513787,1776202234278,-500.0,0.00013454,2]
[420513788,1776202234288,-500.0,0.00013454,2]
[420513789,1776202234299,-570.59519156,0.00013454,2]
[420513790,1776202234309,-500.0,0.00013454,2]
[420513791,1776202234319,-192.37243226,0.00013454,2]
[420513792,1776202234330,-334.33570873,0.00013454,2]
[420513793,1776202234340,-500.0,0.00013454,2]
[420513794,1776202234350,-500.0,0.00013454,2]
[420513795,1776202234360,-500.0,0.00013454,2]
[420513796,1776202234370,-500.0,0.00013454,2]
[420513797,1776202234380,-500.0,0.00013454,2]
[420513798,1776202234390,-500.0,0.00013454,2]
[420513799,1776202234400,-150.0,0.00013454,2]
[420513800,1776202234411,-150.0,0.00013454,2]
[420513801,1776202234421,-150.0,0.00013454,2]
[420513802,1776202234431,-500.11526413,0.00013454,2]
[420513803,1776202234441,-307.78283004,0.00013454,2]
[420513804,1776202234452,-460.70357528,0.00013454,2]
[420513805,1776202234462,-150.0,0.00013454,2]
[420513806,1776202234472,-153.20062263,0.00013454,2]
[420513807,1776202234482,-500.0,0.00013454,2]
[420513808,1776202234492,-500.0,0.00013454,2]
[420513809,1776202234503,-500.0,0.00013454,2]
[420513810,1776202234513,-500.0,0.00013454,2]
[420513811,1776202234523,-500.0,0.00013454,2]
[420513812,1776202234533,-500.0,0.00013454,2]
[420513813,1776202234543,-322.45076486,0.00013454,2]
[420513814,1776202234553,-500.0,0.00013454,2]
[420513815,1776202234564,-500.0,0.00013454,2]
[420513816,1776202234575,-500.0,0.00013454,2]
[420513817,1776202234585,-500.0,0.00013454,2]
[420513818,1776202234595,-500.0,0.00013454,2]
[420513819,1776202234605,-500.0,0.00013454,2]
[420513820,1776202234615,-500.0,0.00013454,2]
[420513821,1776202234626,-500.0,0.00013454,2]
[420513822,1776202234637,-250.0,0.00013454,2]
[420513823,1776202234647,-726332.3542945,0.00013455,2]
[420513824,1776202234663,-435.64713327,0.00013455,2]
[420513825,1776202234690,-1621.58849509,0.00013455,2]
[420513826,1776202234707,-1095.2419208,0.00013455,2]
[420513827,1776202234720,-985.64644893,0.00013455,2]
[420513828,1776202234734,-2368.72,0.00013455,2]
[420513829,1776202238031,-195.45148427,0.000134,2]
[420513830,1776202238042,-500.0,0.00013454,2]
[420513831,1776202238071,-500.0,0.00013454,2]
[420513832,1776202238086,-5741.19851573,0.00013455,2]
[420513833,1776202238111,-41627.80494876,0.00013455,2]
[420513834,1776202238175,-197566.94500633,0.00013455,2]
[420513835,1776202238191,-1343.82,0.00013455,2]
[420513836,1776202238212,-646.50864285,0.00013455,2]
[420513837,1776202238389,-1125.16,0.00013455,2]
[420513840,1776202238420,-38370.74311625,0.00013455,2]
[420513867,1776202240492,-396.46210474,0.00013455,2]
[420513868,1776202240710,-946.45174252,0.00013455,2]
[420513881,1776202243597,-824.0,0.00013455,2]
[420513882,1776202243624,-84514.61331725,0.00013455,2]
[420513901,1776202246102,-36035.14752852,0.00013455,2]
[420513902,1776202246113,-1235.34021761,0.00013455,2]
[420513903,1776202246251,-1037.32092717,0.00013455,2]
[420513904,1776202246264,-445.5,0.00013455,2]
[420513905,1776202246309,-4165.62061234,0.00013455,2]
[420513939,1776202409277,250.0,0.000165,30]
[420513946,1776203273873,10000.0,0.000165,30]
[420513947,1776203282414,10000.0,0.000165,30]
[420513948,1776203291971,10000.0,0.000165,30]
[420513949,1776203304865,3892.0,0.000165,30]
[420513953,1776203431987,-306.0,0.00012018,2]
[420513954,1776203431998,-616.4,0.00012018,2]
[420513955,1776203432010,-845.64030549,0.00012199,2]
[420513960,1776203432330,-1150.31969451,0.00012199,2]
[420513962,1776203432351,-150.0,0.00012199,2]
[420513964,1776203432366,-284.17989899,0.0001236,2]
[420513967,1776203432378,-2868.55,0.00012369,2]
[420513969,1776203432395,-203.0,0.00012445,2]
[420513971,1776203432410,-1873.604,0.00012446,2]
[420513973,1776203432423,-154.855,0.00012446,2]
[420513975,1776203432453,-171.02004878,0.0001257,2]
[420513977,1776203432470,-653.64,0.00012585,2]
[420513979,1776203432501,-5000.0,0.000126,2]
[420513981,1776203432546,-2500.0,0.000126,2]
[420513982,1776203432598,-59244.2606753,0.000126,2]
[420513983,1776203432647,-62510.01341626,0.000126,2]
[420513984,1776203432712,-7115.49685808,0.000126,2]
[420513985,1776203432751,-900.0,0.000126,2]
[420513986,1776203432789,-2419.58059293,0.000126,2]
[420514028,1776203440806,-500.0,0.00012599,2]
[420514029,1776203440838,-500.0,0.00012599,2]
[420514030,1776203440850,-249.23816,0.00012599,2]
[420514031,1776203440885,-128.17570184,0.00012599,2]
[420514032,1776203440897,-183.96215596,0.00012599,2]
[420514033,1776203440926,-331.01247721,0.00012599,2]
[420514034,1776203440938,-500.0,0.00012599,2]
[420514035,1776203440954,-500.0,0.00012599,2]
[420514036,1776203440975,-500.0,0.00012599,2]
[420514037,1776203440986,-500.0,0.00012599,2]
[420514038,1776203440997,-500.0,0.00012599,2]
[420514039,1776203441010,-341.87639183,0.00012599,2]
[420514040,1776203441029,-30813.22432025,0.000126,2]
[420514041,1776203441050,-301.76454383,0.000126,2]
[420514042,1776203441065,-1496.13372,0.000126,2]
[420514043,1776203441088,-53067.82547796,0.000126,2]
[420514044,1776203441315,-511.95657192,0.000126,2]
[420514045,1776203441342,-2087.35561169,0.000126,2]
[420514059,1776203443515,-135611.27054635,0.000126,2]
[420514073,1776203446283,-500.0,0.00012599,2]
[420514074,1776203446293,-5750.96573172,0.000126,2]
[420514075,1776203446454,-11063.5453935,0.000126,2]
[420514076,1776203446753,-1117.4139764,0.000126,2]
[420514078,1776203446779,-441.7470565,0.000126,2]
[420514102,1776204041625,150.0,0.0001175,120]
[420514107,1776204562258,-1200.0,0.00010698,2]
[420514108,1776204562292,-250.0,0.00010699,2]
[420514109,1776204562321,-300.0,0.00010699,2]
[420514110,1776204562357,-500.0,0.00010699,2]
[420514111,1776204562384,-537.4045142,0.00010699,2]
[420514112,1776204562412,-500.0,0.00010699,2]
[420514113,1776204562446,-264.18970329,0.00010699,2]
[420514114,1776204562473,-1989.15359651,0.000107,2]
[420514119,1776204632348,-500.0,0.00010699,2]
[420514120,1776204632365,-91.35220553,0.00010699,2]
[420514121,1776204632397,-376.36,0.00010699,2]
[420514122,1776204632559,-32.28779447,0.00010699,2]
[420514123,1776204632631,-439.31347429,0.00010699,2]
[420514124,1776204632691,-44.35344572,0.00010699,2]
[420514125,1776204632801,-1155.64655428,0.00010699,2]
[420514126,1776204632857,-127.94574923,0.00010699,2]
[420514127,1776204632941,-59.05425077,0.00010699,2]
[420514128,1776204633005,-365.91330393,0.00010699,2]
[420514129,1776204633054,-58328.60251744,0.000107,2]
[420514131,1776204633137,-14814.40915637,0.000107,2]
[420514139,1776204638536,-1287.1,0.000107,2]
[420514140,1776204638633,-381.56271105,0.000107,2]
[420514141,1776204638659,-42993.29882302,0.000107,2]
[420514145,1776204640556,-616.0,0.000107,2]
[420514146,1776204640860,-542.688,0.000107,2]
[420514147,1776204640873,-1219.17117707,0.000107,2]
[420514148,1776204641039,-492.65507974,0.000107,2]
[420514149,1776204641072,-12261.14410848,0.000107,2]
[420514150,1776204641089,-883.15138334,0.000107,2]
[420514176,1776204644503,-202.97681861,0.000107,2]
[420514177,1776204644523,-502.99113787,0.000107,2]
[420514178,1776204644550,-987.61314542,0.000107,2]
[420514179,1776204644567,-40571.42126342,0.000107,2]
[420514180,1776204644599,-113972.18636833,0.000107,2]
[420514181,1776204644651,-164805.91857592,0.000107,2]
[420514182,1776204644665,-250.0,0.00010827,2]
[420514183,1776204644675,-261.32910508,0.000109,2]
[420514184,1776204644687,-1000.0,0.00010941,2]
[420514185,1776204644696,-500.0,0.00011089,2]
[420514186,1776204644712,-2000.0,0.00011136,2]
[420514187,1776204644721,-162.11,0.00011155,2]
[420514188,1776204644735,-150.0,0.000113,2]
[420514189,1776204644751,-150.0,0.00011318,2]
[420514190,1776204644760,-150.0,0.00011318,2]
[420514191,1776204644772,-150.0,0.00011318,2]
[420514192,1776204644782,-150.0,0.00011318,2]
[420514193,1776204644797,-150.0,0.00011318,2]
[420514194,1776204644806,-150.0,0.00011318,2]
[420514195,1776204644821,-150.0,0.00011318,2]
[420514196,1776204644835,-150.0,0.00011318,2]
[420514197,1776204644844,-261.32910505,0.00011529,2]
[420514198,1776204644854,-1500.0,0.00011535,2]
[420514199,1776204644869,-150.0,0.00011737,2]
[420514200,1776204644879,-150.0,0.00011737,2]
[420514201,1776204644891,-150.0,0.0001175,2]
[420514202,1776204644912,-5000.0,0.00011768,2]
[420514203,1776204644922,-250.0,0.00011768,2]
[420514204,1776204644932,-892.0,0.00011769,2]
[420514205,1776204644948,-2000.0,0.00011945,2]
[420514206,1776204644961,-150.0,0.00011947,2]
[420514207,1776204644971,-150.0,0.00011947,2]
[420514208,1776204644981,-467.82,0.00012025,2]
[420514209,1776204645001,-150.0,0.00012156,2]
[420514210,1776204645018,-150.0,0.00012156,2]
[420514211,1776204645030,-261.32910505,0.0001233,2]
[420514212,1776204645046,-190.16626424,0.00012461,2]
[420514213,1776204645061,-1000.0,0.00012492,2]
[420514214,1776204645077,-441.46133169,0.00012497,2]
[420514215,1776204645091,-164.46335226,0.00012497,2]
[420514216,1776204645101,-190.8179,0.000125,2]
[420514217,1776204645118,-800.0,0.000125,4]
[420514218,1776204645133,-500.0,0.00012573,2]
[420514219,1776204645144,-500.0,0.00012573,2]
[420514220,1776204645164,-500.0,0.00012573,2]
[420514221,1776204645198,-150.0,0.00012575,2]
[420514222,1776204645210,-150.0,0.00012575,2]
[420514223,1776204645228,-150.0,0.00012575,2]
[420514224,1776204645250,-150.0,0.00012575,2]
[420514225,1776204645264,-150.0,0.00012575,2]
[420514226,1776204645287,-500.0,0.00012585,2]
[420514227,1776204645298,-500.0,0.00012585,2]
[420514228,1776204645316,-500.0,0.00012585,2]
[420514229,1776204645331,-500.0,0.00012585,2]
[420514230,1776204645342,-500.0,0.00012585,2]
[420514231,1776204645357,-500.0,0.00012585,2]
[420514232,1776204645382,-500.0,0.00012585,2]
[420514233,1776204645394,-500.0,0.00012585,2]
[420514234,1776204645405,-500.0,0.00012585,2]
[420514235,1776204645423,-500.0,0.00012585,2]
[420514236,1776204645435,-500.0,0.00012585,2]
[420514237,1776204645447,-1868.625,0.00012589,2]
[420514238,1776204645464,-154.877,0.00012589,2]
[420514239,1776204645475,-151.0,0.00012589,2]
[420514240,1776204645486,-151.0,0.00012589,2]
[420514241,1776204645503,-150.0,0.00012591,2]
[420514242,1776204645515,-250.0,0.00012591,2]
[420514243,1776204645528,-83308.9828481,0.00012595,2]
[420514244,1776204645542,-151.0,0.00012597,2]
[420514245,1776204645554,-516.20787512,0.000126,2]
[420514246,1776204645565,-223.37067471,0.000126,2]
[420514247,1776204645574,-1700.0,0.000126,4]
[420514248,1776204645593,-164.0,0.000126,3]
[420514249,1776204645606,-155.0,0.000126,3]
[420514250,1776204645619,-217.0,0.000126,3]
[420514251,1776204645631,-162.0,0.000126,3]
[420514252,1776204645642,-150.0,0.0001267,2]
[420514253,1776204645658,-1072.04030549,0.00012699,3]
[420514254,1776204645671,-2500.0,0.000127,4]
[420514255,1776204645686,-3400.0,0.000128,4]
[420514256,1776204645702,-13433.8936081,0.00012804,2]
[420514257,1776204645715,-3472.7072327,0.00012804,2]
[420514258,1776204645734,-19696.484871,0.00012804,2]
[420514259,1776204645746,-3067.0920419,0.00012804,2]
[420514260,1776204645767,-4300.0,0.000129,4]
[420514261,1776204645784,-921.239717,0.0001299,2]
[420514262,1776204645805,-250.0,0.00013,2]
[420514263,1776204645849,-162.11,0.00013014,2]
[420514264,1776204645882,-166.73,0.00013019,2]
[420514265,1776204645899,-80937.98,0.00013047,2]
[420514266,1776204645910,-151.0,0.00013047,2]
[420514267,1776204645943,-642.84578,0.00013047,2]
[420514268,1776204645956,-642.84578,0.00013047,2]
[420514269,1776204645969,-642.84578,0.00013047,2]
[420514270,1776204645984,-642.84578,0.00013047,2]
[420514271,1776204645998,-155.0,0.00013095,3]
[420514272,1776204646019,-217.0,0.00013095,3]
[420514273,1776204646031,-150.0,0.00013272,2]
[420514274,1776204646046,-150.0,0.00013272,2]
[420514275,1776204646079,-150.0,0.00013272,2]
[420514276,1776204646088,-150.0,0.00013272,2]
[420514277,1776204646109,-200.0,0.00013272,2]
[420514278,1776204646124,-150.0,0.00013272,2]
[420514279,1776204646133,-1331.0,0.00013338,2]
[420514280,1776204646158,-2475.033,0.00013338,2]
[420514281,1776204646180,-3777.0,0.00013338,2]
[420514282,1776204646190,-6027.0,0.00013338,2]
[420514283,1776204646204,-3240.0,0.00013425,2]
[420514284,1776204646219,-151.0,0.00013425,2]
[420514285,1776204646228,-2000.0,0.00013438,2]
[420514286,1776204646239,-151.0,0.00013452,2]
[420514287,1776204646256,-31142.5668887,0.00013455,2]
[420514288,1776204646266,-7083.0839842,0.00013455,2]
[420514289,1776204646277,-2821.0529312,0.00013455,2]
[420514290,1776204646305,-151.0,0.00013455,2]
[420514291,1776204646315,-151.0,0.00013455,2]
[420514292,1776204646328,-500.0,0.00013455,2]
[420514293,1776204646345,-642.84578,0.00013455,2]
[420514294,1776204646355,-642.84578,0.00013455,2]
[420514295,1776204646365,-642.84578,0.00013455,2]
[420514296,1776204646383,-642.84578,0.00013455,2]
[420514297,1776204646397,-507.0,0.000135,2]
[420514298,1776204646408,-155.0,0.00013589,3]
[420514299,1776204646423,-217.0,0.00013589,3]
[420514300,1776204646448,-164.46335226,0.00013598,2]
[420514301,1776204646457,-500.0,0.00013698,2]
[420514302,1776204646481,-500.0,0.00013698,2]
[420514303,1776204646496,-500.0,0.00013698,2]
[420514304,1776204646506,-151.0,0.00013698,2]
[420514305,1776204646541,-500.0,0.00013698,2]
[420514306,1776204646551,-500.0,0.00013698,2]
[420514307,1776204646572,-500.0,0.00013698,2]
[420514308,1776204646584,-248.74095659,0.00013698,2]
[420514309,1776204646594,-500.0,0.00013698,2]
[420514310,1776204646613,-500.0,0.00013698,2]
[420514311,1776204646632,-500.0,0.00013698,2]
[420514312,1776204646643,-506.78365876,0.00013698,2]
[420514313,1776204646672,-500.0,0.00013698,2]
[420514314,1776204646680,-500.0,0.00013698,2]
[420514315,1776204646700,-500.0,0.00013698,2]
[420514316,1776204646714,-500.0,0.00013698,2]
[420514317,1776204646724,-500.0,0.00013698,2]
[420514318,1776204646743,-500.0,0.00013698,2]
[420514319,1776204646758,-500.0,0.00013698,2]
[420514320,1776204646769,-500.0,0.00013698,2]
[420514321,1776204646806,-500.0,0.00013698,2]
[420514322,1776204646819,-500.0,0.00013698,2]
[420514323,1776204646839,-500.0,0.00013698,2]
[420514324,1776204646854,-500.0,0.00013698,2]
[420514325,1776204646864,-500.0,0.00013698,2]
[420514326,1776204646875,-228.09,0.00013698,2]
[420514327,1776204646895,-500.0,0.00013698,2]
[420514328,1776204646905,-500.0,0.00013698,2]
[420514329,1776204646916,-500.0,0.00013698,2]
[420514330,1776204646927,-500.0,0.00013698,2]
[420514331,1776204646940,-500.0,0.00013698,2]
[420514332,1776204646954,-500.0,0.00013698,2]
[420514333,1776204646978,-500.0,0.00013698,2]
[420514334,1776204646989,-500.0,0.00013698,2]
[420514335,1776204647002,-500.0,0.00013698,2]
[420514336,1776204647021,-500.0,0.00013698,2]
[420514337,1776204647033,-500.0,0.00013698,2]
[420514339,1776204647042,-500.0,0.00013698,2]
[420514340,1776204647071,-615.79425953,0.00013698,2]
[420514341,1776204647081,-744.22,0.00013699,2]
[420514342,1776204647105,-200.0,0.00013699,2]
[420514343,1776204647121,-166.66,0.00013699,2]
[420514344,1776204647133,-151.0,0.00013699,2]
[420514345,1776204647159,-151.0,0.00013699,2]
[420514346,1776204647171,-151.0,0.00013699,2]
[420514347,1776204647194,-151.0,0.00013699,2]
[420514349,1776204647208,-151.0,0.00013699,2]
[420514350,1776204647238,-151.0,0.00013699,2]
[420514351,1776204647251,-151.0,0.00013699,2]
[420514352,1776204647274,-151.0,0.00013699,2]
[420514353,1776204647294,-151.0,0.00013699,2]
[420514354,1776204647310,-151.0,0.00013699,2]
[420514355,1776204647326,-151.0,0.00013699,2]
[420514356,1776204647338,-151.0,0.00013699,2]
[420514357,1776204647355,-151.0,0.00013699,2]
[420514358,1776204647375,-151.0,0.00013699,2]
[420514359,1776204647388,-201.284095,0.00013699,2]
[420514360,1776204647398,-500.0,0.00013699,2]
[420514361,1776204647410,-1528.0,0.00013699,2]
[420514362,1776204647421,-986.73,0.00013699,2]
[420514363,1776204647433,-151.0,0.00013795,2]
[420514364,1776204647450,-150.0,0.00013798,2]
[420514365,1776204647461,-150.0,0.00013798,2]
[420514366,1776204647472,-150.0,0.00013798,2]
[420514367,1776204647484,-150.0,0.00013798,2]
[420514368,1776204647503,-622.0,0.00013798,2]
[420514369,1776204647513,-1348.0,0.00013798,2]
[420514370,1776204647524,-3159.121,0.00013798,2]
[420514371,1776204647538,-150.156,0.00013798,2]
[420514372,1776204647549,-1264.0,0.00013798,2]
[420514373,1776204647559,-1218.0,0.00013798,2]
[420514374,1776204647571,-926.0,0.00013798,2]
[420514375,1776204647583,-242.7433,0.000138,2]
[420514376,1776204647594,-166.66,0.00013836,2]
[420514377,1776204647604,-155.60933382,0.00013843,2]
[420514378,1776204647619,-441.46133168,0.00013849,2]
[420514379,1776204647634,-160.0,0.00013896,2]
[420514380,1776204647643,-160.0,0.00013947,7]
[420514381,1776204647668,-167.520425,0.00013947,7]
[420514382,1776204647705,-175.040851,0.00013947,7]
[420514383,1776204647725,-211.619452,0.00013947,2]
[420514384,1776204647738,-201.889273,0.00013947,7]
[420514385,1776204647749,-160.0,0.00013947,7]
[420514386,1776204647764,-198.872635,0.00013947,7]
[420514387,1776204647785,-237.74527,0.00013947,7]
[420514388,1776204647795,-166.66,0.00013973,2]
[420514389,1776204647809,-1528.0,0.00013973,2]
[420514390,1776204647820,-986.73,0.00013973,2]
[420514391,1776204647829,-1500.0,0.00014,2]
[420514392,1776204647838,-150.0,0.00014033,2]
[420514393,1776204647860,-155.0,0.00014084,3]
[420514394,1776204647870,-217.0,0.00014084,3]
[420514395,1776204647888,-166.66,0.0001411,2]
[420514396,1776204647898,-578.20924308,0.00014155,2]
[420514397,1776204647907,-233.51889342,0.00014155,2]
[420514398,1776204647919,-151.0,0.00014155,2]
[420514399,1776204647941,-174.61919141,0.00014155,2]
[420514400,1776204647952,-191.640903,0.00014159,7]
[420514401,1776204647961,-272.790698,0.00014172,2]
[420514402,1776204647970,-1600.0,0.00014188,2]
[420514403,1776204647989,-18588.7466847,0.00014225,2]
[420514404,1776204648002,-166.66,0.00014247,2]
[420514405,1776204648011,-1528.0,0.00014247,2]
[420514406,1776204648027,-999.89,0.00014247,2]
[420514407,1776204648045,-744.22,0.00014384,2]
[420514408,1776204648054,-166.66,0.00014384,2]
[420514409,1776204648063,-162.43,0.00014384,2]
[420514410,1776204648079,-340.53545864,0.00014401,2]
[420514411,1776204648090,-2997.5068322,0.00014448,2]
[420514412,1776204648099,-4394.8798236,0.00014461,2]
[420514413,1776204648109,-445.81133877,0.000145,4]
[420514414,1776204648130,-222.90566938,0.000145,4]
[420514415,1776204648143,-1223.0,0.00014518,5]
[420514416,1776204648154,-1620.0,0.00014518,5]
[420514417,1776204648175,-1141.0,0.00014518,5]
[420514418,1776204648191,-1528.0,0.00014521,2]
[420514419,1776204648222,-155.0,0.00014579,3]
[420514420,1776204648235,-217.0,0.00014579,3]
[420514421,1776204648258,-1300.0,0.00014582,2]
[420514422,1776204648273,-2400.0,0.00014582,2]
[420514423,1776204648287,-4147.7100247,0.00014588,2]
[420514424,1776204648341,-3782.0,0.000146,2]
[420514425,1776204648365,-1000.0,0.00014644,2]
[420514426,1776204648383,-228.436944,0.00014644,7]
[420514427,1776204648397,-271.189956,0.00014644,7]
[420514428,1776204648443,-164.46335226,0.00014699,2]
[420514429,1776204648478,-181.08010149,0.00014703,2]
[420514430,1776204648495,-259.58073968,0.0001472,2]
[420514431,1776204648545,-168.0,0.00014746,2]
[420514432,1776204648559,-1528.0,0.00014795,2]
[420514433,1776204648584,-223.499398,0.000148,2]
[420514434,1776204648599,-800.0,0.000148,5]
[420514435,1776204648642,-668.8341795,0.00014814,2]
[420514436,1776204648653,-1000.0,0.00014816,2]
[420514437,1776204648685,-980.6302388,0.00014831,2]
[420514438,1776204648725,-4728.0,0.0001485,2]
[420514439,1776204648737,-172.8959124,0.00014851,2]
[420514440,1776204648779,-152.7015211,0.00014851,2]
[420514441,1776204648789,-162.11,0.00014873,2]
[420514442,1776204648827,-168.0,0.00014897,2]
[420514443,1776204648837,-800.0,0.000149,5]
[420514444,1776204648869,-2000.0,0.00014932,2]
[420514445,1776204648879,-507.0,0.00014946,3]
[420514446,1776204648922,-209.04964,0.0001495,2]
[420514447,1776204648935,-209.04964,0.0001495,2]
[420514448,1776204648957,-209.04964,0.0001495,2]
[420514449,1776204648968,-712.0,0.00014952,2]
[420514450,1776204648979,-256.82019915,0.00014985,2]
[420514451,1776204648999,-392.52919131,0.00014994,2]
[420514452,1776204649015,-164.8621,0.00015,2]
[420514453,1776204649027,-493.0,0.00015,2]
[420514454,1776204649042,-1199.0,0.00015,2]
[420514455,1776204649054,-688.0,0.00015,2]
[420514456,1776204649067,-300.0,0.00015,2]
[420514457,1776204649079,-1620.38612895,0.00015,7]
[420514458,1776204649093,-151.0,0.00015,2]
[420514459,1776204649106,-151.0,0.00015,2]
[420514460,1776204649117,-151.0,0.00015,2]
[420514461,1776204649136,-217.112351,0.00015,2]
[420514462,1776204649152,-308.7986,0.00015,2]
[420514463,1776204649165,-304.0,0.00015038,2]
[420514464,1776204649176,-278.55,0.0001505,2]
[420514465,1776204649186,-168.0,0.00015051,2]
[420514466,1776204649208,-150.94,0.00015052,2]
[420514467,1776204649220,-150.0,0.00015058,2]
[420514468,1776204649232,-150.0,0.00015066,2]
[420514469,1776204649252,-1528.0,0.00015068,2]
[420514470,1776204649263,-744.22,0.00015068,2]
[420514471,1776204649278,-151.0,0.00015068,2]
[420514472,1776204649296,-151.0,0.00015068,2]
[420514473,1776204649311,-151.0,0.00015068,2]
[420514474,1776204649337,-151.0,0.00015068,2]
[420514475,1776204649346,-151.0,0.00015068,2]
[420514476,1776204649374,-151.0,0.00015068,2]
[420514477,1776204649384,-155.0,0.00015074,3]
[420514478,1776204649400,-217.0,0.00015074,3]
[420514479,1776204649451,-200.0,0.00015078,2]
[420514480,1776204649474,-168.0,0.0001508,2]
[420514481,1776204649498,-1000.0,0.0001509,2]
[420514482,1776204649531,-1000.0,0.000151,2]
[420514483,1776204649553,-1000.0,0.000151,2]
[420514484,1776204649587,-1000.0,0.000151,2]
[420514485,1776204649598,-1000.0,0.000151,2]
[420514486,1776204649610,-1000.0,0.000151,2]
[420514487,1776204649657,-1000.0,0.000151,2]
[420514488,1776204649679,-1000.0,0.000151,2]
[420514489,1776204649696,-1000.0,0.000151,2]
[420514490,1776204649705,-1000.0,0.000151,2]
[420514491,1776204649725,-1028.08962309,0.000151,2]
[420514492,1776204649744,-151.0,0.000151,2]
[420514493,1776204649754,-186.576799,0.000151,2]
[420514494,1776204649771,-209.04964,0.000151,2]
[420514495,1776204649794,-209.04964,0.000151,2]
[420514496,1776204649809,-209.04964,0.000151,2]
[420514497,1776204649830,-151.0,0.000151,2]
[420514498,1776204649842,-151.0,0.000151,2]
[420514499,1776204649857,-151.0,0.000151,2]
[420514500,1776204649896,-642.84578,0.000151,2]
[420514501,1776204649905,-642.84578,0.000151,2]
[420514502,1776204649916,-642.84578,0.000151,2]
[420514503,1776204649938,-642.84578,0.000151,2]
[420514504,1776204649949,-150.0,0.00015107,2]
[420514505,1776204649959,-258.17,0.00015115,2]
[420514506,1776204649972,-168.0,0.00015132,2]
[420514507,1776204649986,-168.0,0.00015149,2]
[420514508,1776204649996,-150.0,0.00015155,2]
[420514509,1776204650006,-168.0,0.00015169,2]
[420514510,1776204650020,-1928.99542001,0.00015182,2]
[420514511,1776204650042,-5019.85051729,0.00015182,2]
[420514512,1776204650052,-1580.4496637,0.00015182,2]
[420514513,1776204650081,-441.46133168,0.000152,2]
[420514514,1776204650092,-400.72577522,0.000152,2]
[420514515,1776204650107,-439.370718,0.000152,2]
[420514516,1776204650121,-300.0,0.00015216,2]
[420514517,1776204650144,-169.45,0.00015216,2]
[420514518,1776204650155,-168.0,0.00015223,2]
[420514519,1776204650167,-168.0,0.00015224,2]